fUSD/lending_fUSD_20250215
["ID","MTS","AMOUNT","RATE_DAILY","PERIOD"]
[353130489,1739590239337,-228.66400845,0.00011099,2]
[353130490,1739590239348,-228.6640084,0.00011099,2]
[353130491,1739590239359,-228.6640084,0.00011099,2]
[353130492,1739590239369,-228.6640084,0.00011099,2]
[353130493,1739590239378,-228.6640084,0.00011099,2]
[353130494,1739590239387,-228.6640084,0.00011099,2]
[353130495,1739590239397,-228.6640084,0.00011099,2]
[353130496,1739590239406,-237.70930721,0.00011108,2]
[353130497,1739590239417,-228.6640084,0.00011117,2]
[353130498,1739590239427,-4832.22853725,0.00011117,2]
[353130499,1739590239436,-500.0,0.00011117,2]
[353130500,1739590239446,-508.889808,0.00011118,2]
[353130501,1739590239456,-601.437824,0.00011118,2]
[353130502,1739590239466,-500.0,0.00011118,2]
[353130503,1739590239475,-693.09,0.00011118,2]
[353130504,1739590239485,-500.0,0.00011118,2]
[353130505,1739590239494,-503.41,0.00011118,2]
[353130506,1739590239504,-532.21835324,0.00011118,2]
[353130507,1739590239513,-500.0,0.00011118,2]
[353130508,1739590239522,-556.2,0.00011118,2]
[353130509,1739590239532,-500.0,0.00011118,2]
[353130510,1739590239542,-500.0,0.00011118,2]
[353130511,1739590239551,-538.7,0.00011118,2]
[353130512,1739590239560,-598.69,0.00011118,2]
[353130513,1739590239569,-517.85,0.00011118,2]
[353130514,1739590239580,-500.0,0.00011118,2]
[353130515,1739590239589,-500.0,0.00011118,2]
[353130516,1739590239599,-500.0,0.00011118,2]
[353130517,1739590239608,-523.07,0.00011118,2]
[353130518,1739590239618,-500.0,0.00011118,2]
[353130519,1739590239628,-610.51,0.00011118,2]
[353130520,1739590239637,-500.0,0.00011118,2]
[353130521,1739590239646,-500.0,0.00011118,2]
[353130522,1739590239655,-500.0,0.00011118,2]
[353130523,1739590239664,-543.97,0.00011118,2]
[353130524,1739590239673,-500.0,0.00011118,2]
[353130525,1739590239682,-500.0,0.00011118,2]
[353130526,1739590239691,-500.0,0.00011118,2]
[353130527,1739590239701,-500.0,0.00011118,2]
[353130528,1739590239710,-541.5,0.00011118,2]
[353130529,1739590239718,-500.0,0.00011118,2]
[353130530,1739590239727,-500.0,0.00011118,2]
[353130531,1739590239737,-500.0,0.00011118,2]
[353130532,1739590239746,-500.0,0.00011118,2]
[353130533,1739590239755,-500.0,0.00011118,2]
[353130534,1739590239765,-500.0,0.00011118,2]
[353130535,1739590239774,-500.0,0.00011118,2]
[353130536,1739590239783,-960.93,0.00011118,2]
[353130537,1739590239793,-500.0,0.00011118,2]
[353130538,1739590239802,-500.0,0.00011118,2]
[353130539,1739590239812,-500.0,0.00011118,2]
[353130540,1739590239821,-500.0,0.00011118,2]
[353130541,1739590239831,-608.15,0.00011118,2]
[353130542,1739590239841,-500.0,0.00011118,2]
[353130543,1739590239850,-500.0,0.00011118,2]
[353130544,1739590239860,-676.47,0.00011118,2]
[353130545,1739590239870,-500.0,0.00011118,2]
[353130546,1739590239880,-557.48,0.00011118,2]
[353130547,1739590239889,-662.68,0.00011118,2]
[353130548,1739590239898,-500.0,0.00011118,2]
[353130549,1739590239909,-643.42,0.00011118,2]
[353130550,1739590239918,-660.12,0.00011118,2]
[353130551,1739590239927,-500.0,0.00011118,2]
[353130552,1739590239937,-500.0,0.00011118,2]
[353130553,1739590239946,-1082.61,0.00011118,2]
[353130554,1739590239955,-767.14,0.00011118,2]
[353130555,1739590239964,-503.54,0.00011118,2]
[353130556,1739590239974,-500.0,0.00011118,2]
[353130557,1739590239983,-500.0,0.00011118,2]
[353130558,1739590239992,-787.59,0.00011118,2]
[353130559,1739590240002,-500.0,0.00011118,2]
[353130560,1739590240012,-500.0,0.00011118,2]
[353130561,1739590240022,-4000.0,0.00011118,2]
[353130562,1739590240031,-689.16,0.00011118,2]
[353130563,1739590240040,-500.0,0.00011118,2]
[353130564,1739590240050,-964.32,0.00011118,2]
[353130565,1739590240059,-858.96,0.00011118,2]
[353130566,1739590240069,-500.0,0.00011118,2]
[353130567,1739590240078,-574.9,0.00011118,2]
[353130568,1739590240088,-1529.12,0.00011118,2]
[353130569,1739590240097,-500.0,0.00011118,2]
[353130570,1739590240108,-817.09,0.00011118,2]
[353130571,1739590240119,-781.23,0.00011118,2]
[353130572,1739590240128,-1131.77,0.00011118,2]
[353130573,1739590240137,-651.44,0.00011118,2]
[353130574,1739590240147,-1167.68,0.00011118,2]
[353130575,1739590240156,-1094.29,0.00011118,2]
[353130576,1739590240165,-798.66,0.00011118,2]
[353130577,1739590240176,-500.0,0.00011118,2]
[353130578,1739590240185,-570.42,0.00011118,2]
[353130579,1739590240195,-659.67,0.00011118,2]
[353130580,1739590240205,-464.76930816,0.00011118,2]
[353130581,1739590240215,-1470.04,0.00011118,2]
[353130582,1739590240224,-675.16,0.00011118,2]
[353130583,1739590240235,-1732.69,0.00011118,2]
[353130584,1739590240244,-849.98,0.00011118,2]
[353130585,1739590240256,-1556.95,0.00011118,2]
[353130586,1739590240265,-500.0,0.00011118,2]
[353130587,1739590240278,-919.47,0.00011118,2]
[353130588,1739590240287,-962.71,0.00011118,2]
[353130589,1739590240297,-500.0,0.00011118,2]
[353130590,1739590240306,-500.0,0.00011118,2]
[353130591,1739590240317,-151.0,0.00011118,2]
[353130592,1739590240327,-791.74,0.00011118,2]
[353130593,1739590240336,-1159.06,0.00011118,2]
[353130594,1739590240345,-1249.19,0.00011118,2]
[353130595,1739590240355,-151.0,0.00011118,2]
[353130596,1739590240364,-2058.83,0.00011118,2]
[353130597,1739590240374,-659.51,0.00011118,2]
[353130598,1739590240384,-912.02,0.00011118,2]
[353130599,1739590240393,-767.03,0.00011118,2]
[353130600,1739590240402,-151.0,0.00011118,2]
[353130601,1739590240412,-1786.42,0.00011118,2]
[353130602,1739590240421,-1641.75,0.00011118,2]
[353130603,1739590240431,-996.8,0.00011118,2]
[353130604,1739590240442,-855.52,0.00011118,2]
[353130605,1739590240451,-1206.95,0.00011118,2]
[353130606,1739590240461,-553.01,0.00011118,2]
[353130607,1739590240472,-500.0,0.00011118,2]
[353130608,1739590240481,-1162.32,0.00011118,2]
[353130609,1739590240490,-1253.56,0.00011118,2]
[353130610,1739590240500,-596.01,0.00011118,2]
[353130611,1739590240510,-1125.14,0.00011118,2]
[353130612,1739590240519,-1435.22,0.00011118,2]
[353130613,1739590240528,-623.7,0.00011118,2]
[353130614,1739590240537,-1629.5,0.00011118,2]
[353130615,1739590240547,-687.81,0.00011118,2]
[353130616,1739590240555,-500.0,0.00011118,2]
[353130617,1739590240565,-2549.45,0.00011118,2]
[353130618,1739590240574,-1088.93,0.00011118,2]
[353130619,1739590240583,-931.68,0.00011118,2]
[353130620,1739590240592,-1722.03,0.00011118,2]
[353130621,1739590240601,-6013.14,0.00011118,2]
[353130622,1739590240610,-1536.0,0.00011118,2]
[353130623,1739590240619,-1813.65,0.00011118,2]
[353130624,1739590240629,-4352.96,0.00011118,2]
[353130625,1739590240638,-1628.1,0.00011118,2]
[353130626,1739590240648,-1297.16,0.00011118,2]
[353130627,1739590240657,-1508.02,0.00011118,2]
[353130628,1739590240666,-1818.45,0.00011118,2]
[353130629,1739590240676,-1490.63,0.00011118,2]
[353130630,1739590240685,-1072.42,0.00011118,2]
[353130631,1739590240694,-1090.42,0.00011118,2]
[353130632,1739590240703,-500.0,0.00011118,2]
[353130633,1739590240714,-4704.3,0.00011118,2]
[353130634,1739590240723,-500.0,0.00011118,2]
[353130635,1739590240732,-500.0,0.00011118,2]
[353130636,1739590240741,-1354.99,0.00011118,2]
[353130637,1739590240751,-1076.04,0.00011118,2]
[353130638,1739590240760,-804.22,0.00011118,2]
[353130639,1739590240769,-1360.63,0.00011118,2]
[353130640,1739590240779,-3201.18,0.00011118,2]
[353130641,1739590240788,-2017.59,0.00011118,2]
[353130642,1739590240797,-500.0,0.00011118,2]
[353130643,1739590240807,-1447.15,0.00011118,2]
[353130644,1739590240816,-663.45,0.00011118,2]
[353130645,1739590240825,-2097.4,0.00011118,2]
[353130646,1739590240835,-1360.31,0.00011118,2]
[353130647,1739590240844,-1228.29,0.00011118,2]
[353130648,1739590240853,-614.54,0.00011118,2]
[353130649,1739590240862,-1595.58,0.00011118,2]
[353130650,1739590240872,-1032.11,0.00011118,2]
[353130651,1739590240881,-500.0,0.00011118,2]
[353130652,1739590240890,-582.38,0.00011118,2]
[353130653,1739590240900,-526.94,0.00011118,2]
[353130654,1739590240909,-2102.17,0.00011118,2]
[353130655,1739590240919,-500.0,0.00011118,2]
[353130656,1739590240929,-1374.38,0.00011118,2]
[353130657,1739590240938,-1082.55,0.00011118,2]
[353130658,1739590240948,-1294.74,0.00011118,2]
[353130659,1739590240957,-723.33,0.00011118,2]
[353130660,1739590240967,-668.03,0.00011118,2]
[353130661,1739590240976,-151.0,0.00011119,2]
[353130662,1739590240986,-484.59,0.00011119,2]
[353130663,1739590240995,-381.34910627,0.00011119,2]
[353130664,1739590241005,-500.0,0.00011119,2]
[353130665,1739590241014,-500.0,0.00011119,2]
[353130666,1739590241024,-503.89169284,0.00011119,2]
[353130667,1739590241033,-500.0,0.00011119,2]
[353130668,1739590241042,-239.42248507,0.00011119,2]
[353130669,1739590241051,-500.0,0.0001112,2]
[353130670,1739590241060,-500.0,0.0001112,2]
[353130671,1739590241069,-500.0,0.0001112,2]
[353130672,1739590241078,-152.91189586,0.0001112,2]
[353130673,1739590241087,-500.0,0.0001112,2]
[353130674,1739590241097,-505.88143774,0.0001112,2]
[353130675,1739590241106,-500.0,0.0001112,2]
[353130676,1739590241115,-500.0,0.0001112,2]
[353130677,1739590241124,-500.0,0.0001112,2]
[353130678,1739590241133,-500.0,0.0001112,2]
[353130679,1739590241142,-558.73912157,0.0001112,2]
[353130680,1739590241151,-500.0,0.0001112,2]
[353130681,1739590241160,-500.0,0.0001112,2]
[353130682,1739590241169,-500.0,0.0001112,2]
[353130683,1739590241178,-500.0,0.0001112,2]
[353130684,1739590241187,-500.0,0.0001112,2]
[353130685,1739590241197,-508.55,0.0001112,2]
[353130686,1739590241206,-500.0,0.0001112,2]
[353130687,1739590241216,-500.0,0.0001112,2]
[353130688,1739590241225,-500.0,0.0001112,2]
[353130689,1739590241234,-500.0,0.0001112,2]
[353130690,1739590241244,-500.0,0.0001112,2]
[353130691,1739590241254,-500.0,0.0001112,2]
[353130692,1739590241263,-500.0,0.0001112,2]
[353130693,1739590241274,-500.0,0.0001112,2]
[353130694,1739590241284,-500.0,0.0001112,2]
[353130695,1739590241293,-500.0,0.0001112,2]
[353130696,1739590241303,-500.0,0.0001112,2]
[353130697,1739590241312,-500.0,0.0001112,2]
[353130698,1739590241322,-500.0,0.0001112,2]
[353130699,1739590241331,-500.0,0.0001112,2]
[353130700,1739590241341,-500.0,0.0001112,2]
[353130701,1739590241352,-500.0,0.0001112,2]
[353130702,1739590241361,-500.0,0.0001112,2]
[353130703,1739590241370,-500.0,0.0001112,2]
[353130704,1739590241380,-500.0,0.0001112,2]
[353130705,1739590241389,-505.10864801,0.0001112,2]
[353130706,1739590241398,-500.0,0.0001112,2]
[353130707,1739590241407,-648.13871735,0.0001112,2]
[353130708,1739590241417,-674.18,0.0001112,2]
[353130709,1739590241426,-500.0,0.0001112,2]
[353130710,1739590241435,-500.0,0.0001112,2]
[353130711,1739590241445,-500.0,0.0001112,2]
[353130712,1739590241455,-549.12,0.0001112,2]
[353130713,1739590241464,-500.0,0.0001112,2]
[353130714,1739590241473,-500.0,0.0001112,2]
[353130715,1739590241482,-542.30575457,0.0001112,2]
[353130716,1739590241491,-500.0,0.0001112,2]
[353130717,1739590241501,-500.0,0.0001112,2]
[353130718,1739590241510,-500.0,0.0001112,2]
[353130719,1739590241520,-500.0,0.0001112,2]
[353130720,1739590241530,-500.0,0.0001112,2]
[353130721,1739590241539,-500.0,0.0001112,2]
[353130722,1739590241548,-500.0,0.0001112,2]
[353130723,1739590241557,-500.0,0.0001112,2]
[353130724,1739590241566,-506.84952212,0.0001112,2]
[353130725,1739590241576,-505.8796595,0.0001112,2]
[353130726,1739590241585,-500.0,0.0001112,2]
[353130727,1739590241594,-500.0,0.0001112,2]
[353130728,1739590241603,-500.0,0.0001112,2]
[353130729,1739590241612,-500.0,0.0001112,2]
[353130730,1739590241621,-500.0,0.0001112,2]
[353130731,1739590241631,-500.0,0.0001112,2]
[353130732,1739590241642,-683.54,0.0001112,2]
[353130733,1739590241651,-500.0,0.0001112,2]
[353130734,1739590241661,-500.0,0.0001112,2]
[353130735,1739590241671,-500.0,0.0001112,2]
[353130736,1739590241679,-500.0,0.0001112,2]
[353130737,1739590241689,-500.0,0.0001112,2]
[353130738,1739590241699,-630.84,0.0001112,2]
[353130739,1739590241708,-516.89,0.0001112,2]
[353130740,1739590241718,-500.0,0.0001112,2]
[353130741,1739590241728,-622.46,0.0001112,2]
[353130742,1739590241738,-500.0,0.0001112,2]
[353130743,1739590241749,-500.0,0.0001112,2]
[353130744,1739590241759,-599.23,0.0001112,2]
[353130745,1739590241769,-500.0,0.0001112,2]
[353130746,1739590241778,-500.0,0.0001112,2]
[353130747,1739590241789,-500.0,0.0001112,2]
[353130748,1739590241798,-500.0,0.0001112,2]
[353130749,1739590241809,-500.0,0.0001112,2]
[353130750,1739590241819,-500.0,0.0001112,2]
[353130751,1739590241828,-502.22029653,0.0001112,2]
[353130752,1739590241837,-656.01,0.0001112,2]
[353130753,1739590241846,-500.0,0.0001112,2]
[353130754,1739590241855,-500.0,0.0001112,2]
[353130755,1739590241864,-500.0,0.0001112,2]
[353130756,1739590241874,-500.0,0.0001112,2]
[353130757,1739590241883,-1181.43,0.0001112,2]
[353130758,1739590241893,-500.0,0.0001112,2]
[353130759,1739590241902,-500.0,0.0001112,2]
[353130760,1739590241911,-681.01,0.0001112,2]
[353130761,1739590241921,-500.0,0.0001112,2]
[353130762,1739590241932,-889.26,0.0001112,2]
[353130763,1739590241943,-476.64098733,0.0001112,2]
[353130764,1739590241954,-785.52,0.0001112,2]
[353130765,1739590241965,-500.0,0.0001112,2]
[353130766,1739590241974,-500.0,0.0001112,2]
[353130767,1739590241984,-551.11,0.0001112,2]
[353130768,1739590241995,-782.95,0.0001112,2]
[353130769,1739590242006,-500.0,0.0001112,2]
[353130770,1739590242015,-500.0,0.0001112,2]
[353130771,1739590242025,-500.0,0.0001112,2]
[353130772,1739590242034,-556.57,0.0001112,2]
[353130773,1739590242044,-500.0,0.0001112,2]
[353130774,1739590242054,-500.0,0.0001112,2]
[353130775,1739590242064,-500.0,0.0001112,2]
[353130776,1739590242073,-500.0,0.0001112,2]
[353130777,1739590242083,-582.07,0.0001112,2]
[353130778,1739590242093,-500.0,0.0001112,2]
[353130779,1739590242102,-500.0,0.0001112,2]
[353130780,1739590242111,-500.0,0.0001112,2]
[353130781,1739590242121,-500.0,0.0001112,2]
[353130782,1739590242130,-500.0,0.0001112,2]
[353130783,1739590242140,-500.0,0.0001112,2]
[353130784,1739590242149,-500.0,0.0001112,2]
[353130785,1739590242158,-500.0,0.0001112,2]
[353130786,1739590242167,-500.0,0.0001112,2]
[353130787,1739590242176,-500.0,0.0001112,2]
[353130788,1739590242186,-500.0,0.0001112,2]
[353130789,1739590242195,-500.0,0.0001112,2]
[353130790,1739590242205,-726.0,0.0001112,2]
[353130791,1739590242215,-500.0,0.0001112,2]
[353130792,1739590242224,-500.0,0.0001112,2]
[353130793,1739590242234,-500.0,0.0001112,2]
[353130794,1739590242243,-964.28,0.0001112,2]
[353130795,1739590242254,-500.0,0.0001112,2]
[353130796,1739590242264,-661.44,0.0001112,2]
[353130797,1739590242278,-701.51,0.0001112,2]
[353130798,1739590242287,-506.14764781,0.0001112,2]
[353130799,1739590242297,-500.0,0.0001112,2]
[353130800,1739590242307,-799.11,0.0001112,2]
[353130801,1739590242317,-859.62,0.0001112,2]
[353130802,1739590242326,-558.9,0.0001112,2]
[353130803,1739590242336,-500.0,0.0001112,2]
[353130804,1739590242346,-539.67,0.0001112,2]
[353130805,1739590242356,-500.0,0.0001112,2]
[353130806,1739590242366,-500.0,0.0001112,2]
[353130807,1739590242375,-500.0,0.0001112,2]
[353130808,1739590242384,-500.0,0.0001112,2]
[353130809,1739590242394,-500.0,0.0001112,2]
[353130810,1739590242403,-500.0,0.0001112,2]
[353130811,1739590242413,-503.08,0.0001112,2]
[353130812,1739590242423,-799.03,0.0001112,2]
[353130813,1739590242432,-500.0,0.0001112,2]
[353130814,1739590242442,-500.0,0.0001112,2]
[353130815,1739590242451,-587.49,0.0001112,2]
[353130816,1739590242460,-500.0,0.0001112,2]
[353130817,1739590242469,-500.0,0.0001112,2]
[353130818,1739590242479,-500.0,0.0001112,2]
[353130819,1739590242488,-500.0,0.0001112,2]
[353130820,1739590242498,-500.0,0.0001112,2]
[353130821,1739590242507,-543.2,0.0001112,2]
[353130822,1739590242516,-500.0,0.0001112,2]
[353130823,1739590242525,-500.0,0.0001112,2]
[353130824,1739590242534,-500.0,0.0001112,2]
[353130825,1739590242544,-500.0,0.0001112,2]
[353130826,1739590242553,-500.0,0.0001112,2]
[353130827,1739590242562,-500.0,0.0001112,2]
[353130828,1739590242571,-500.0,0.0001112,2]
[353130829,1739590242581,-519.33207959,0.0001112,2]
[353130830,1739590242590,-500.0,0.0001112,2]
[353130831,1739590242600,-500.0,0.0001112,2]
[353130832,1739590242609,-500.0,0.0001112,2]
[353130833,1739590242617,-500.0,0.0001112,2]
[353130834,1739590242626,-500.0,0.0001112,2]
[353130835,1739590242636,-500.0,0.0001112,2]
[353130836,1739590242646,-500.0,0.0001112,2]
[353130837,1739590242656,-500.0,0.0001112,2]
[353130838,1739590242667,-500.0,0.0001112,2]
[353130840,1739590242677,-500.0,0.0001112,2]
[353130842,1739590242686,-500.0,0.0001112,2]
[353130843,1739590242697,-500.0,0.0001112,2]
[353130844,1739590242706,-151.0,0.0001112,2]
[353130845,1739590242715,-1724.95,0.0001112,2]
[353130846,1739590242725,-500.0,0.0001112,2]
[353130847,1739590242736,-656.85,0.0001112,2]
[353130848,1739590242745,-500.0,0.0001112,2]
[353130849,1739590242755,-500.0,0.0001112,2]
[353130850,1739590242764,-500.0,0.0001112,2]
[353130851,1739590242774,-1136.74,0.0001112,2]
[353130852,1739590242783,-1571.01,0.0001112,2]
[353130853,1739590242793,-602.55,0.0001112,2]
[353130854,1739590242802,-500.0,0.0001112,2]
[353130855,1739590242812,-657.56,0.0001112,2]
[353130856,1739590242822,-500.0,0.0001112,2]
[353130857,1739590242831,-779.4,0.0001112,2]
[353130858,1739590242841,-1098.77,0.0001112,2]
[353130859,1739590242850,-508.42550521,0.0001112,2]
[353130860,1739590242859,-500.0,0.0001112,2]
[353130861,1739590242869,-500.0,0.0001112,2]
[353130862,1739590242878,-1615.09,0.0001112,2]
[353130863,1739590242888,-479.90549572,0.0001112,2]
[353130864,1739590242899,-500.0,0.0001112,2]
[353130865,1739590242908,-500.0,0.0001112,2]
[353130866,1739590242918,-151.0,0.0001112,2]
[353130867,1739590242927,-292.407244,0.0001112,2]
[353130868,1739590242938,-500.0,0.0001112,2]
[353130869,1739590242947,-500.0,0.0001112,2]
[353130870,1739590242957,-500.0,0.0001112,2]
[353130871,1739590242967,-500.0,0.0001112,2]
[353130872,1739590242976,-571.05,0.0001112,2]
[353130873,1739590242986,-500.0,0.0001112,2]
[353130874,1739590242996,-706.19,0.0001112,2]
[353130875,1739590243007,-586.76,0.0001112,2]
[353130876,1739590243016,-500.0,0.0001112,2]
[353130877,1739590243027,-500.0,0.0001112,2]
[353130878,1739590243037,-500.0,0.0001112,2]
[353130879,1739590243047,-704.82,0.0001112,2]
[353130880,1739590243057,-500.0,0.0001112,2]
[353130881,1739590243068,-723.84,0.0001112,2]
[353130882,1739590243078,-500.0,0.0001112,2]
[353130883,1739590243087,-500.0,0.0001112,2]
[353130884,1739590243097,-500.0,0.0001112,2]
[353130885,1739590243106,-500.0,0.0001112,2]
[353130886,1739590243117,-500.0,0.0001112,2]
[353130887,1739590243127,-500.0,0.0001112,2]
[353130888,1739590243137,-500.0,0.0001112,2]
[353130889,1739590243147,-500.0,0.0001112,2]
[353130890,1739590243157,-500.0,0.0001112,2]
[353130891,1739590243166,-500.0,0.0001112,2]
[353130892,1739590243176,-500.0,0.0001112,2]
[353130893,1739590243187,-500.0,0.0001112,2]
[353130894,1739590243197,-320.66093496,0.00011121,2]
[353130895,1739590243206,-500.0,0.00011122,2]
[353130896,1739590243216,-500.0,0.00011122,2]
[353130897,1739590243226,-151.0,0.00011123,2]
[353130898,1739590243237,-151.0,0.00011123,2]
[353130899,1739590243248,-151.0,0.00011123,2]
[353130900,1739590243259,-151.0,0.00011123,2]
[353130901,1739590243269,-151.0,0.00011123,2]
[353130902,1739590243283,-151.0,0.00011123,2]
[353130903,1739590243293,-151.0,0.00011123,2]
[353130904,1739590243303,-151.0,0.00011123,2]
[353130905,1739590243314,-151.0,0.00011123,2]
[353130906,1739590243323,-151.0,0.00011123,2]
[353130907,1739590243333,-151.0,0.00011123,2]
[353130908,1739590243344,-151.0,0.00011123,2]
[353130909,1739590243354,-151.0,0.00011123,2]
[353130910,1739590243364,-151.0,0.00011123,2]
[353130911,1739590243373,-151.0,0.00011123,2]
[353130912,1739590243384,-151.0,0.00011123,2]
[353130913,1739590243394,-151.0,0.00011123,2]
[353130914,1739590243403,-151.0,0.00011123,2]
[353130915,1739590243414,-151.0,0.00011123,2]
[353130916,1739590243425,-151.0,0.00011123,2]
[353130917,1739590243436,-151.0,0.00011123,2]
[353130918,1739590243446,-151.0,0.00011123,2]
[353130919,1739590243457,-151.0,0.00011123,2]
[353130920,1739590243467,-151.0,0.00011123,2]
[353130921,1739590243477,-151.0,0.00011123,2]
[353130922,1739590243486,-161.008865,0.00011123,2]
[353130923,1739590243497,-500.0,0.00011123,2]
[353130924,1739590243507,-960.55,0.00011123,2]
[353130925,1739590243517,-968.66,0.00011123,2]
[353130926,1739590243526,-640.96,0.00011123,2]
[353130927,1739590243536,-787.0,0.00011123,2]
[353130928,1739590243546,-500.0,0.00011123,2]
[353130929,1739590243556,-985.89,0.00011123,2]
[353130930,1739590243566,-755.88,0.00011123,2]
[353130931,1739590243577,-770.98,0.00011123,2]
[353130932,1739590243586,-937.49,0.00011123,2]
[353130933,1739590243596,-1002.94,0.00011123,2]
[353130934,1739590243606,-513.7,0.00011123,2]
[353130935,1739590243616,-889.88,0.00011123,2]
[353130936,1739590243626,-500.0,0.00011123,2]
[353130937,1739590243637,-500.0,0.00011123,2]
[353130938,1739590243647,-1272.83,0.00011123,2]
[353130939,1739590243657,-500.0,0.00011123,2]
[353130940,1739590243668,-773.24,0.00011123,2]
[353130941,1739590243678,-787.8,0.00011123,2]
[353130942,1739590243689,-766.4,0.00011123,2]
[353130943,1739590243700,-500.0,0.00011123,2]
[353130944,1739590243709,-500.0,0.00011123,2]
[353130945,1739590243719,-1393.82,0.00011123,2]
[353130946,1739590243728,-500.0,0.00011123,2]
[353130947,1739590243738,-500.0,0.00011123,2]
[353130948,1739590243748,-305.2,0.00011161,2]
[353130949,1739590243758,-489.64013509,0.00011169,2]
[353130950,1739590243768,-300.0,0.000112,2]
[353130951,1739590243778,-300.0,0.00011201,2]
[353130952,1739590243790,-508.889808,0.00011201,2]
[353130953,1739590243800,-601.437824,0.00011201,2]
[353130954,1739590243810,-500.0,0.00011201,2]
[353130955,1739590243821,-500.0,0.00011201,2]
[353130956,1739590243830,-500.0,0.00011201,2]
[353130957,1739590243840,-500.0,0.00011201,2]
[353130958,1739590243850,-693.09,0.00011201,2]
[353130959,1739590243860,-500.0,0.00011201,2]
[353130960,1739590243869,-503.41,0.00011201,2]
[353130961,1739590243880,-500.0,0.00011201,2]
[353130962,1739590243889,-556.2,0.00011201,2]
[353130963,1739590243899,-500.0,0.00011201,2]
[353130964,1739590243910,-500.0,0.00011201,2]
[353130965,1739590243920,-538.7,0.00011201,2]
[353130966,1739590243930,-598.69,0.00011201,2]
[353130967,1739590243940,-517.85,0.00011201,2]
[353130968,1739590243950,-500.0,0.00011201,2]
[353130969,1739590243960,-500.0,0.00011201,2]
[353130970,1739590243969,-500.0,0.00011201,2]
[353130971,1739590243979,-523.07,0.00011201,2]
[353130972,1739590243989,-500.0,0.00011201,2]
[353130974,1739590243999,-610.51,0.00011201,2]
[353130976,1739590244009,-151.0,0.00011201,2]
[353130977,1739590244019,-500.0,0.00011201,2]
[353130978,1739590244029,-500.0,0.00011201,2]
[353130979,1739590244039,-500.0,0.00011201,2]
[353130980,1739590244049,-543.97,0.00011201,2]
[353130981,1739590244059,-500.0,0.00011201,2]
[353130982,1739590244070,-500.0,0.00011201,2]
[353130983,1739590244080,-500.0,0.00011201,2]
[353130984,1739590244090,-500.0,0.00011201,2]
[353130985,1739590244099,-541.5,0.00011201,2]
[353130986,1739590244110,-500.0,0.00011201,2]
[353130987,1739590244120,-500.0,0.00011201,2]
[353130988,1739590244131,-500.0,0.00011201,2]
[353130989,1739590244141,-960.93,0.00011201,2]
[353130990,1739590244151,-500.0,0.00011201,2]
[353130991,1739590244161,-500.0,0.00011201,2]
[353130992,1739590244171,-500.0,0.00011201,2]